fUSD/lending_fUSD_20250726
["ID","MTS","AMOUNT","RATE_DAILY","PERIOD"]
[374985565,1753491045092,-2010.2,0.00021917,2]
[374985566,1753491045101,-1000.0,0.00021917,2]
[374985567,1753491045111,-1215.48,0.00021917,2]
[374985568,1753491045120,-1000.0,0.00021917,2]
[374985569,1753491045128,-400.0,0.00021917,2]
[374985570,1753491045135,-684.85,0.00021917,2]
[374985571,1753491045143,-400.0,0.00021917,2]
[374985572,1753491045150,-1000.0,0.00021917,2]
[374985573,1753491045158,-1000.0,0.00021917,2]
[374985574,1753491045165,-664.51,0.00021917,2]
[374985575,1753491045172,-1000.0,0.00021917,2]
[374985576,1753491045179,-1000.0,0.00021917,2]
[374985577,1753491045186,-351.86013115,0.00021917,2]
[374985578,1753491045192,-400.0,0.00021917,2]
[374985579,1753491045202,-400.0,0.00021917,2]
[374985580,1753491045211,-400.0,0.00021917,2]
[374985581,1753491045221,-872.13,0.00021917,2]
[374985582,1753491045230,-400.0,0.00021917,2]
[374985583,1753491045240,-400.0,0.00021917,2]
[374985584,1753491045249,-488.03,0.00021917,2]
[374985585,1753491045259,-400.0,0.00021917,2]
[374985586,1753491045269,-457.21,0.00021917,2]
[374985587,1753491045279,-699.95,0.00021917,2]
[374985588,1753491045288,-500.0,0.00021917,2]
[374985589,1753491045298,-537.87,0.00021917,2]
[374985590,1753491045307,-500.0,0.00021917,2]
[374985591,1753491045317,-525.8,0.00021917,2]
[374985592,1753491045327,-400.0,0.00021917,2]
[374985593,1753491045335,-400.0,0.00021917,2]
[374985595,1753491045345,-400.0,0.00021917,2]
[374985596,1753491045355,-400.0,0.00021917,2]
[374985597,1753491045365,-400.0,0.00021917,2]
[374985598,1753491045375,-400.0,0.00021917,2]
[374985599,1753491045386,-400.0,0.00021917,2]
[374985601,1753491045396,-400.0,0.00021917,2]
[374985603,1753491045406,-636.62,0.00021917,2]
[374985604,1753491045415,-400.0,0.00021917,2]
[374985605,1753491045425,-400.0,0.00021917,2]
[374985606,1753491045435,-400.0,0.00021917,2]
[374985607,1753491045444,-400.0,0.00021917,2]
[374985609,1753491045457,-691.66,0.00021917,2]
[374985611,1753491045466,-151.0,0.00021917,2]
[374985612,1753491045475,-151.0,0.00021917,2]
[374985613,1753491045484,-151.0,0.00021917,2]
[374985614,1753491045493,-400.0,0.00021917,2]
[374985615,1753491045502,-151.0,0.00021917,2]
[374985616,1753491045512,-633.57,0.00021917,2]
[374985617,1753491045521,-151.0,0.00021917,2]
[374985618,1753491045531,-400.0,0.00021917,2]
[374985619,1753491045541,-400.0,0.00021917,2]
[374985620,1753491045551,-1261.08,0.00021917,2]
[374985621,1753491045561,-400.0,0.00021917,2]
[374985622,1753491045570,-400.0,0.00021917,2]
[374985623,1753491045580,-400.0,0.00021917,2]
[374985624,1753491045590,-400.0,0.00021917,2]
[374985625,1753491045600,-579.24,0.00021917,2]
[374985626,1753491045610,-400.0,0.00021917,2]
[374985627,1753491045619,-1155.52,0.00021917,2]
[374985628,1753491045629,-798.44,0.00021917,2]
[374985629,1753491045638,-400.0,0.00021917,2]
[374985630,1753491045648,-400.0,0.00021917,2]
[374985631,1753491045658,-490.54021167,0.00021917,2]
[374985632,1753491045668,-500.0,0.00021917,2]
[374985633,1753491045677,-500.0,0.00021917,2]
[374985634,1753491045687,-211.07698269,0.00021917,2]
[374985635,1753491045696,-400.0,0.00021917,2]
[374985636,1753491045705,-400.0,0.00021917,2]
[374985637,1753491045715,-400.0,0.00021917,2]
[374985638,1753491045724,-714.64,0.00021917,2]
[374985639,1753491045734,-400.0,0.00021917,2]
[374985640,1753491045743,-400.0,0.00021917,2]
[374985641,1753491045752,-1277.06,0.00021917,2]
[374985642,1753491045762,-400.0,0.00021917,2]
[374985643,1753491045771,-400.0,0.00021917,2]
[374985644,1753491045780,-828.14,0.00021917,2]
[374985645,1753491045789,-707.61,0.00021917,2]
[374985646,1753491045798,-500.0,0.00021917,2]
[374985647,1753491045808,-400.0,0.00021917,2]
[374985648,1753491045817,-400.0,0.00021917,2]
[374985649,1753491045827,-460.432466,0.00021917,2]
[374985650,1753491045836,-501.9,0.00021917,2]
[374985651,1753491045846,-400.0,0.00021917,2]
[374985653,1753491046195,-460.432466,0.00021917,2]
[374985654,1753491046221,-400.0,0.00021917,2]
[374985655,1753491046231,-460.432466,0.00021917,2]
[374985656,1753491046240,-400.0,0.00021917,2]
[374985657,1753491046249,-460.432466,0.00021917,2]
[374985658,1753491046258,-400.0,0.00021917,2]
[374985659,1753491046267,-1032.5,0.00021917,2]
[374985660,1753491046275,-460.432466,0.00021917,2]
[374985661,1753491046284,-460.432466,0.00021917,2]
[374985662,1753491046293,-460.432466,0.00021917,2]
[374985663,1753491046302,-460.432466,0.00021917,2]
[374985664,1753491046311,-3194.07,0.00021917,2]
[374985665,1753491046320,-460.432466,0.00021917,2]
[374985666,1753491046330,-400.0,0.00021917,2]
[374985667,1753491046339,-328.74390071,0.00021917,2]
[374985668,1753491046349,-462.89538143,0.00021917,2]
[374985669,1753491046360,-460.432466,0.00021917,2]
[374985670,1753491046369,-400.0,0.00021917,2]
[374985671,1753491046380,-460.432466,0.00021917,2]
[374985672,1753491046390,-400.0,0.00021917,2]
[374985673,1753491046399,-460.432466,0.00021917,2]
[374985674,1753491046409,-460.432466,0.00021917,2]
[374985675,1753491046419,-493.03,0.00021917,2]
[374985676,1753491046429,-460.432466,0.00021917,2]
[374985677,1753491046439,-460.432466,0.00021917,2]
[374985678,1753491046451,-460.432466,0.00021917,2]
[374985679,1753491046461,-400.0,0.00021917,2]
[374985680,1753491046471,-613.58,0.00021917,2]
[374985681,1753491046480,-460.432466,0.00021917,2]
[374985682,1753491046491,-400.0,0.00021917,2]
[374985683,1753491046501,-460.432471,0.00021917,2]
[374985684,1753491046511,-400.0,0.00021917,2]
[374985685,1753491046521,-400.0,0.00021917,2]
[374985686,1753491046531,-400.0,0.00021917,2]
[374985687,1753491046541,-2170.75,0.00021917,2]
[374985688,1753491046551,-400.0,0.00021917,2]
[374985689,1753491046561,-529.27,0.00021917,2]
[374985690,1753491046571,-4128.26,0.00021917,2]
[374985691,1753491046581,-971.88,0.00021917,2]
[374985692,1753491046590,-154.613213,0.00021917,2]
[374985693,1753491046600,-400.0,0.00021917,2]
[374985694,1753491046611,-162.877409,0.00021917,2]
[374985695,1753491046620,-400.0,0.00021917,2]
[374985696,1753491046630,-515.05,0.00021917,2]
[374985697,1753491046640,-400.0,0.00021917,2]
[374985698,1753491046649,-155.981815,0.00021917,2]
[374985699,1753491046659,-400.0,0.00021917,2]
[374985700,1753491046669,-154.556699,0.00021917,2]
[374985701,1753491046679,-400.0,0.00021917,2]
[374985702,1753491046688,-400.0,0.00021917,2]
[374985703,1753491046699,-400.0,0.00021917,2]
[374985704,1753491046708,-1516.67,0.00021917,2]
[374985705,1753491046718,-400.0,0.00021917,2]
[374985706,1753491046727,-553.5,0.00021917,2]
[374985707,1753491046737,-400.0,0.00021917,2]
[374985708,1753491046747,-677.5,0.00021917,2]
[374985709,1753491046757,-2137.85,0.00021917,2]
[374985710,1753491046767,-400.0,0.00021917,2]
[374985711,1753491046776,-400.0,0.00021917,2]
[374985712,1753491046786,-400.0,0.00021917,2]
[374985713,1753491046795,-526.01,0.00021917,2]
[374985714,1753491046805,-400.0,0.00021917,2]
[374985715,1753491046815,-500.0,0.00021917,2]
[374985716,1753491046824,-500.0,0.00021917,2]
[374985717,1753491046833,-500.0,0.00021917,2]
[374985718,1753491046843,-400.0,0.00021917,2]
[374985719,1753491046854,-158.032305,0.00021917,2]
[374985720,1753491046864,-400.0,0.00021917,2]
[374985721,1753491046874,-1249.1,0.00021917,2]
[374985722,1753491046885,-400.0,0.00021917,2]
[374985723,1753491046895,-400.0,0.00021917,2]
[374985724,1753491046904,-657.53,0.00021917,2]
[374985725,1753491046914,-1020.92,0.00021917,2]
[374985726,1753491046923,-400.0,0.00021917,2]
[374985727,1753491046933,-400.0,0.00021917,2]
[374985728,1753491046943,-412.45,0.00021917,2]
[374985729,1753491046952,-557.95,0.00021917,2]
[374985730,1753491046962,-860.85,0.00021917,2]
[374985731,1753491046972,-400.0,0.00021917,2]
[374985732,1753491046982,-400.0,0.00021917,2]
[374985733,1753491046991,-400.0,0.00021917,2]
[374985734,1753491047001,-527.67,0.00021917,2]
[374985735,1753491047011,-400.0,0.00021917,2]
[374985736,1753491047020,-2525.05,0.00021917,2]
[374985737,1753491047031,-400.0,0.00021917,2]
[374985738,1753491047043,-400.0,0.00021917,2]
[374985739,1753491047055,-1255.92,0.00021917,2]
[374985740,1753491047066,-400.0,0.00021917,2]
[374985741,1753491047076,-442.51,0.00021917,2]
[374985742,1753491047087,-2425.18,0.00021917,2]
[374985743,1753491047097,-400.0,0.00021917,2]
[374985744,1753491047107,-400.0,0.00021917,2]
[374985745,1753491047117,-181.08361462,0.00021917,2]
[374985746,1753491047126,-188.08365589,0.00021917,2]
[374985747,1753491047136,-1153.54,0.00021917,2]
[374985748,1753491047146,-400.0,0.00021917,2]
[374985749,1753491047156,-2885.02,0.00021917,2]
[374985750,1753491047165,-405.33,0.00021917,2]
[374985751,1753491047175,-400.0,0.00021917,2]
[374985752,1753491047184,-1054.73,0.00021917,2]
[374985753,1753491047194,-400.0,0.00021917,2]
[374985754,1753491047203,-400.0,0.00021917,2]
[374985755,1753491047213,-2877.98,0.00021917,2]
[374985756,1753491047222,-400.0,0.00021917,2]
[374985757,1753491047232,-444.56,0.00021917,2]
[374985758,1753491047241,-400.0,0.00021917,2]
[374985759,1753491047251,-400.0,0.00021917,2]
[374985760,1753491047260,-400.0,0.00021917,2]
[374985761,1753491047270,-2118.48,0.00021917,2]
[374985762,1753491047279,-400.0,0.00021917,2]
[374985763,1753491047289,-400.0,0.00021917,2]
[374985764,1753491047299,-929.3,0.00021917,2]
[374985765,1753491047307,-403.7,0.00021917,2]
[374985766,1753491047317,-400.0,0.00021917,2]
[374985767,1753491047326,-400.0,0.00021917,2]
[374985768,1753491047336,-2330.65,0.00021917,2]
[374985769,1753491047346,-1739.38,0.00021917,2]
[374985770,1753491047355,-432.69,0.00021917,2]
[374985771,1753491047364,-400.0,0.00021917,2]
[374985772,1753491047374,-400.0,0.00021917,2]
[374985773,1753491047383,-400.0,0.00021917,2]
[374985774,1753491047393,-2155.15,0.00021917,2]
[374985775,1753491047403,-400.0,0.00021917,2]
[374985776,1753491047412,-1255.41,0.00021917,2]
[374985777,1753491047421,-2912.9,0.00021917,2]
[374985778,1753491047431,-519.66,0.00021917,2]
[374985779,1753491047440,-2244.36,0.00021917,2]
[374985780,1753491047454,-400.0,0.00021917,2]
[374985781,1753491047463,-604.34,0.00021917,2]
[374985782,1753491047473,-2321.25,0.00021917,2]
[374985783,1753491047483,-400.0,0.00021917,2]
[374985784,1753491047492,-400.0,0.00021917,2]
[374985785,1753491047501,-400.0,0.00021917,2]
[374985786,1753491047511,-151.0,0.00021917,2]
[374985787,1753491047521,-151.0,0.00021917,2]
[374985788,1753491047531,-151.0,0.00021917,2]
[374985789,1753491047541,-400.0,0.00021917,2]
[374985790,1753491047551,-151.0,0.00021917,2]
[374985791,1753491047561,-151.0,0.00021917,2]
[374985792,1753491047571,-400.0,0.00021917,2]
[374985793,1753491047580,-154.613213,0.00021917,2]
[374985794,1753491047590,-400.0,0.00021917,2]
[374985795,1753491047599,-400.0,0.00021917,2]
[374985796,1753491047609,-400.0,0.00021917,2]
[374985797,1753491047619,-400.0,0.00021917,2]
[374985798,1753491047629,-1027.0,0.00021917,2]
[374985799,1753491047639,-400.0,0.00021917,2]
[374985800,1753491047648,-400.0,0.00021917,2]
[374985801,1753491047658,-638.73,0.00021917,2]
[374985802,1753491047667,-240.0,0.00021917,2]
[374985803,1753491047678,-155.96199,0.00021917,2]
[374985804,1753491047688,-400.0,0.00021917,2]
[374985805,1753491047698,-153.15264,0.00021917,2]
[374985806,1753491047707,-2043.72,0.00021917,2]
[374985807,1753491047718,-2339.8,0.00021917,2]
[374985808,1753491047728,-400.0,0.00021917,2]
[374985809,1753491047739,-400.0,0.00021917,2]
[374985810,1753491047748,-428.48,0.00021917,2]
[374985811,1753491047758,-1271.54,0.00021917,2]
[374985812,1753491047768,-400.0,0.00021917,2]
[374985813,1753491047778,-400.0,0.00021917,2]
[374985814,1753491047789,-400.0,0.00021917,2]
[374985815,1753491047798,-400.0,0.00021917,2]
[374985816,1753491047808,-400.0,0.00021917,2]
[374985817,1753491047818,-400.0,0.00021917,2]
[374985818,1753491047829,-989.72,0.00021917,2]
[374985819,1753491047839,-151.0,0.00021917,2]
[374985820,1753491047850,-151.0,0.00021917,2]
[374985821,1753491047860,-400.0,0.00021917,2]
[374985822,1753491047869,-151.0,0.00021917,2]
[374985823,1753491047879,-151.0,0.00021917,2]
[374985824,1753491047888,-400.0,0.00021917,2]
[374985825,1753491047898,-151.0,0.00021917,2]
[374985826,1753491047907,-400.0,0.00021917,2]
[374985827,1753491047916,-400.0,0.00021917,2]
[374985828,1753491047925,-151.0,0.00021917,2]
[374985829,1753491047934,-1220.67,0.00021917,2]
[374985830,1753491047943,-151.0,0.00021917,2]
[374985831,1753491047953,-174.410254,0.00021917,2]
[374985832,1753491047962,-151.0,0.00021917,2]
[374985833,1753491047971,-400.0,0.00021917,2]
[374985834,1753491047982,-151.0,0.00021917,2]
[374985835,1753491047991,-400.0,0.00021917,2]
[374985836,1753491048000,-400.0,0.00021917,2]
[374985837,1753491048010,-400.0,0.00021917,2]
[374985838,1753491048019,-400.0,0.00021917,2]
[374985839,1753491048029,-264.998496,0.00021917,2]
[374985840,1753491048039,-400.0,0.00021917,2]
[374985841,1753491048049,-574.0,0.00021917,2]
[374985842,1753491048059,-1148.43,0.00021917,2]
[374985843,1753491048069,-1004.94,0.00021917,2]
[374985844,1753491048078,-259.646338,0.00021917,2]
[374985845,1753491048088,-259.646338,0.00021917,2]
[374985846,1753491048096,-259.646338,0.00021917,2]
[374985847,1753491048106,-259.646338,0.00021917,2]
[374985848,1753491048116,-1270.27,0.00021917,2]
[374985849,1753491048126,-446.5739278,0.00021917,2]
[374985850,1753491048135,-400.0,0.00021917,2]
[374985851,1753491048144,-259.646338,0.00021917,2]
[374985852,1753491048154,-259.646338,0.00021917,2]
[374985853,1753491048163,-400.0,0.00021917,2]
[374985854,1753491048173,-259.646338,0.00021917,2]
[374985855,1753491048182,-259.646338,0.00021917,2]
[374985856,1753491048191,-400.0,0.00021917,2]
[374985857,1753491048201,-259.646338,0.00021917,2]
[374985858,1753491048210,-519.72395783,0.00021917,2]
[374985859,1753491048219,-259.646338,0.00021917,2]
[374985860,1753491048228,-2018.29,0.00021917,2]
[374985861,1753491048237,-259.646338,0.00021917,2]
[374985862,1753491048247,-2018.29,0.00021917,2]
[374985863,1753491048256,-259.646338,0.00021917,2]
[374985864,1753491048265,-2018.29,0.00021917,2]
[374985865,1753491048275,-1560.32,0.00021917,2]
[374985866,1753491048284,-259.646338,0.00021917,2]
[374985867,1753491048294,-2018.29,0.00021917,2]
[374985868,1753491048304,-2018.29,0.00021917,2]
[374985869,1753491048313,-259.646338,0.00021917,2]
[374985870,1753491048322,-2018.29,0.00021917,2]
[374985871,1753491048331,-2018.29,0.00021917,2]
[374985872,1753491048340,-945.52,0.00021917,2]
[374985873,1753491048350,-2018.29,0.00021917,2]
[374985874,1753491048360,-259.646338,0.00021917,2]
[374985875,1753491048370,-2018.29,0.00021917,2]
[374985876,1753491048379,-500.0,0.00021917,2]
[374985877,1753491048389,-2018.29,0.00021917,2]
[374985878,1753491048399,-400.0,0.00021917,2]
[374985879,1753491048409,-259.646338,0.00021917,2]
[374985880,1753491048419,-151.0,0.00021917,2]
[374985881,1753491048428,-400.0,0.00021917,2]
[374985882,1753491048438,-151.0,0.00021917,2]
[374985883,1753491048448,-155.831491,0.00021917,2]
[374985884,1753491048459,-259.646338,0.00021917,2]
[374985885,1753491048468,-259.646338,0.00021917,2]
[374985886,1753491048477,-1552.68,0.00021917,2]
[374985887,1753491048487,-259.646338,0.00021917,2]
[374985888,1753491048498,-259.64633,0.00021917,2]
[374985889,1753491048508,-400.0,0.00021917,2]
[374985890,1753491048518,-400.0,0.00021917,2]
[374985891,1753491048528,-2868.66,0.00021917,2]
[374985892,1753491048538,-400.0,0.00021917,2]
[374985893,1753491048548,-639.2,0.00021917,2]
[374985894,1753491048558,-150.0,0.00021917,2]
[374985895,1753491048568,-490.0,0.00021917,2]
[374985896,1753491048692,-1882.9,0.00021917,2]
[374985897,1753491048703,-151.0,0.00021917,2]
[374985898,1753491048713,-151.0,0.00021917,2]
[374985899,1753491048722,-151.0,0.00021917,2]
[374985900,1753491048732,-1012.87,0.00021917,2]
[374985901,1753491048741,-151.0,0.00021917,2]
[374985902,1753491048751,-400.0,0.00021917,2]
[374985903,1753491048760,-151.0,0.00021917,2]
[374985904,1753491048770,-1729.91,0.00021917,2]
[374985905,1753491048779,-487.747854,0.00021917,2]
[374985906,1753491048789,-487.747854,0.00021917,2]
[374985907,1753491048799,-400.0,0.00021917,2]
[374985908,1753491048809,-487.747854,0.00021917,2]
[374985909,1753491048818,-400.0,0.00021917,2]
[374985910,1753491048827,-487.747854,0.00021917,2]
[374985911,1753491048837,-487.747854,0.00021917,2]
[374985912,1753491048846,-487.747854,0.00021917,2]
[374985913,1753491048856,-663.41,0.00021917,2]
[374985914,1753491048866,-2731.55,0.00021917,2]
[374985915,1753491048876,-487.747854,0.00021917,2]
[374985916,1753491048886,-400.0,0.00021917,2]
[374985917,1753491048895,-662.62,0.00021917,2]
[374985918,1753491048905,-487.747854,0.00021917,2]
[374985919,1753491048924,-400.0,0.00021917,2]
[374985920,1753491048934,-487.747854,0.00021917,2]
[374985921,1753491048944,-400.0,0.00021917,2]
[374985922,1753491048954,-487.747854,0.00021917,2]
[374985923,1753491048963,-1816.99,0.00021917,2]
[374985924,1753491048972,-487.747854,0.00021917,2]
[374985925,1753491048982,-491.05294009,0.00021917,2]
[374985926,1753491048992,-487.747854,0.00021917,2]
[374985927,1753491049002,-400.0,0.00021917,2]
[374985928,1753491049011,-980.7,0.00021917,2]
[374985929,1753491049021,-487.747854,0.00021917,2]
[374985930,1753491049030,-487.747854,0.00021917,2]
[374985931,1753491049040,-487.747854,0.00021917,2]
[374985932,1753491049049,-487.747854,0.00021917,2]
[374985933,1753491049058,-487.747849,0.00021917,2]
[374985934,1753491049068,-400.0,0.00021917,2]
[374985935,1753491049077,-400.0,0.00021917,2]
[374985936,1753491049088,-1409.39,0.00021917,2]
[374985937,1753491049098,-400.0,0.00021917,2]
[374985938,1753491049108,-151.0,0.00021917,2]
[374985939,1753491049117,-152.833883,0.00021917,2]
[374985940,1753491049127,-1015.2,0.00021917,2]
[374985941,1753491049137,-400.0,0.00021917,2]
[374985942,1753491049147,-400.0,0.00021917,2]
[374985943,1753491049156,-2055.21,0.00021917,2]
[374985944,1753491049166,-400.0,0.00021917,2]
[374985945,1753491049175,-400.0,0.00021917,2]
[374985946,1753491049185,-908.55,0.00021917,2]
[374985947,1753491049195,-150.0,0.00021917,2]
[374985948,1753491049204,-1895.62,0.00021917,2]
[374985949,1753491049214,-457.46631398,0.00021917,2]
[374985950,1753491049223,-400.0,0.00021917,2]
[374985951,1753491049233,-400.0,0.00021917,2]
[374985952,1753491049242,-931.54,0.00021917,2]
[374985953,1753491049251,-400.0,0.00021917,2]
[374985954,1753491049261,-400.0,0.00021917,2]
[374985955,1753491049270,-1135.3,0.00021917,2]
[374985956,1753491049280,-1323.64,0.00021917,2]
[374985957,1753491049289,-400.0,0.00021917,2]
[374985958,1753491049298,-588.76,0.00021917,2]
[374985959,1753491049309,-400.0,0.00021917,2]
[374985960,1753491049318,-728.05,0.00021917,2]
[374985961,1753491049328,-400.0,0.00021917,2]
[374985962,1753491049338,-400.0,0.00021917,2]
[374985963,1753491049347,-400.0,0.00021917,2]
[374985964,1753491049365,-485.1,0.00021917,2]
[374985965,1753491049381,-150.0,0.00021917,2]
[374985966,1753491049392,-400.0,0.00021917,2]
[374985967,1753491049401,-613.39,0.00021917,2]
[374985968,1753491049410,-400.0,0.00021917,2]
[374985969,1753491049420,-400.0,0.00021917,2]
[374985970,1753491049429,-1018.46,0.00021917,2]
[374985971,1753491049438,-1380.66,0.00021917,2]
[374985972,1753491049451,-400.0,0.00021917,2]
[374985973,1753491049460,-400.0,0.00021917,2]
[374985974,1753491049470,-400.0,0.00021917,2]
[374985975,1753491049479,-268.0264463,0.00021917,2]
[374985976,1753491049489,-400.0,0.00021917,2]
[374985977,1753491049499,-151.0,0.00021917,2]
[374985978,1753491049508,-400.0,0.00021917,2]
[374985979,1753491049518,-151.0,0.00021917,2]
[374985980,1753491049527,-151.0,0.00021917,2]
[374985981,1753491049537,-400.0,0.00021917,2]
[374985982,1753491049546,-2039.03,0.00021917,2]
[374985983,1753491049556,-400.0,0.00021917,2]
[374985984,1753491049565,-2810.13,0.00021917,2]
[374985985,1753491049574,-400.0,0.00021917,2]
[374985986,1753491049584,-400.0,0.00021917,2]
[374985987,1753491049593,-400.0,0.00021917,2]
[374985988,1753491049603,-400.0,0.00021917,2]
[374985989,1753491049613,-2455.7,0.00021917,2]
[374985990,1753491049623,-2518.7,0.00021917,2]
[374985991,1753491049632,-151.0,0.00021917,2]
[374985992,1753491049641,-1416.41,0.00021917,2]
[374985993,1753491049650,-159.190694,0.00021917,2]
[374985994,1753491049658,-226.703125,0.00021917,2]
[374985995,1753491049667,-226.703125,0.00021917,2]
[374985996,1753491049676,-400.0,0.00021917,2]
[374985997,1753491049686,-226.703125,0.00021917,2]
[374985998,1753491049696,-226.703125,0.00021917,2]
[374985999,1753491049706,-300.324486,0.00021917,2]
[374986000,1753491049715,-226.703125,0.00021917,2]
[374986001,1753491049725,-226.703125,0.00021917,2]
[374986002,1753491049735,-499.2,0.00021917,2]
[374986003,1753491049744,-226.703125,0.00021917,2]
[374986004,1753491049754,-226.703125,0.00021917,2]
[374986005,1753491049764,-400.0,0.00021917,2]
[374986006,1753491049773,-226.703125,0.00021917,2]
[374986007,1753491049783,-226.703125,0.00021917,2]
[374986008,1753491049792,-226.703125,0.00021917,2]
[374986009,1753491049802,-226.703125,0.00021917,2]
[374986010,1753491049812,-400.0,0.00021917,2]
[374986011,1753491049822,-226.703125,0.00021917,2]
[374986012,1753491049832,-226.703125,0.00021917,2]
[374986013,1753491049842,-400.0,0.00021917,2]
[374986014,1753491049852,-444.30638266,0.00021917,2]
[374986015,1753491049862,-226.703125,0.00021917,2]
[374986016,1753491049871,-226.703125,0.00021917,2]
[374986017,1753491049881,-3093.24,0.00021917,2]
[374986018,1753491049891,-226.703125,0.00021917,2]
[374986019,1753491049900,-226.703125,0.00021917,2]
[374986020,1753491049910,-226.703125,0.00021917,2]
[374986021,1753491049919,-226.703124,0.00021917,2]
[374986022,1753491049928,-1069.3,0.00021917,2]
[374986023,1753491049939,-400.0,0.00021917,2]
[374986024,1753491049949,-254.39342905,0.00021917,2]
[374986025,1753491049958,-400.0,0.00021917,2]
[374986026,1753491049967,-1983.88,0.00021917,2]
[374986027,1753491049977,-2738.38,0.00021917,2]
[374986028,1753491049987,-400.0,0.00021917,2]
[374986029,1753491049996,-400.0,0.00021917,2]
[374986030,1753491050006,-400.0,0.00021917,2]
[374986031,1753491050015,-400.0,0.00021917,2]
[374986032,1753491050025,-151.0,0.00021917,2]
[374986033,1753491050034,-151.0,0.00021917,2]
[374986034,1753491050044,-2437.64,0.00021917,2]
[374986035,1753491050053,-400.0,0.00021917,2]
[374986036,1753491050063,-400.0,0.00021917,2]
[374986037,1753491050072,-864.37,0.00021917,2]
[374986038,1753491050081,-400.0,0.00021917,2]
[374986039,1753491050090,-400.0,0.00021917,2]
[374986040,1753491050099,-400.0,0.00021917,2]
[374986041,1753491050108,-400.0,0.00021917,2]
[374986042,1753491050117,-400.0,0.00021917,2]
[374986043,1753491050126,-400.0,0.00021917,2]
[374986044,1753491050135,-400.0,0.00021917,2]
[374986045,1753491050144,-686.03,0.00021917,2]
[374986046,1753491050153,-400.0,0.00021917,2]
[374986047,1753491050162,-728.22,0.00021917,2]
[374986048,1753491050171,-423.75,0.00021917,2]
[374986049,1753491050181,-400.0,0.00021917,2]
[374986050,1753491050190,-2954.15,0.00021917,2]
[374986051,1753491050199,-400.0,0.00021917,2]
[374986052,1753491050208,-400.0,0.00021917,2]
[374986053,1753491050217,-400.0,0.00021917,2]
[374986054,1753491050226,-1641.72,0.00021917,2]
[374986055,1753491050235,-400.0,0.00021917,2]
[374986056,1753491050243,-400.0,0.00021917,2]
[374986057,1753491050253,-500.0,0.00021917,2]
[374986058,1753491050262,-2443.83,0.00021917,2]
[374986059,1753491050271,-152.55381702,0.00021917,2]
[374986060,1753491050280,-400.0,0.00021917,2]
[374986061,1753491050288,-600.01,0.00021917,2]
[374986062,1753491050297,-400.0,0.00021917,2]
[374986063,1753491050305,-400.0,0.00021917,2]
[374986064,1753491050314,-400.0,0.00021917,2]
[374986065,1753491050323,-400.0,0.00021917,2]
[374986066,1753491050331,-400.0,0.00021917,2]
[374986067,1753491050340,-400.0,0.00021917,2]
[374986068,1753491050349,-400.0,0.00021917,2]
[374986069,1753491050357,-400.0,0.00021917,2]
[374986070,1753491050367,-1401.69,0.00021917,2]